[Event "*** Titled Tuesday Blitz"]
[Site "Chess.com"]
[Date "2020.04.07"]
[Round "7"]
[White "aquiles88"]
[Black "kleopl"]
[Result "1/2-1/2"]
[WhiteElo "2223"]
[BlackElo "2379"]
[TimeControl "180+1"]
[EndTime "14:20:06 PDT"]
[Termination "Game drawn by repetition"]

1. g3 {[%clk 0:03:00.2]} 1... Nf6 {[%clk 0:02:58.8]} 2. Bg2 {[%clk 0:03:01.1]}
2... g6 {[%clk 0:02:58.8]} 3. e4 {[%clk 0:03:00.6]} 3... e5 {[%clk 0:02:56.8]}
4. Nc3 {[%clk 0:02:58.3]} 4... Bg7 {[%clk 0:02:56.1]} 5. Nf3 {[%clk 0:02:58.7]}
5... Nc6 {[%clk 0:02:55.3]} 6. d4 {[%clk 0:02:57.4]} 6... exd4 {[%clk
0:02:54.8]} 7. Nxd4 {[%clk 0:02:58.3]} 7... O-O {[%clk 0:02:53]} 8. Nde2 {[%clk
0:02:58.3]} 8... Re8 {[%clk 0:02:51.2]} 9. O-O {[%clk 0:02:57.8]} 9... d6 {[%clk
0:02:48.9]} 10. h3 {[%clk 0:02:57.5]} 10... Be6 {[%clk 0:02:46.2]} 11. Nf4
{[%clk 0:02:55.3]} 11... Qd7 {[%clk 0:02:44]} 12. Nxe6 {[%clk 0:02:53.7]} 12...
fxe6 {[%clk 0:02:42.8]} 13. Re1 {[%clk 0:02:50.7]} 13... Rf8 {[%clk 0:02:37.5]}
14. f4 {[%clk 0:02:47.2]} 14... Nh5 {[%clk 0:02:32.4]} 15. Qf3 {[%clk
0:02:40.9]} 15... Nd4 {[%clk 0:02:25.8]} 16. Qd3 {[%clk 0:02:40.6]} 16... c5
{[%clk 0:02:13.2]} 17. Kh2 {[%clk 0:02:37.5]} 17... e5 {[%clk 0:02:02]} 18. Nd5
{[%clk 0:02:19]} 18... Rae8 {[%clk 0:01:43.7]} 19. Rf1 {[%clk 0:01:56.9]} 19...
b6 {[%clk 0:01:36.7]} 20. c3 {[%clk 0:01:53.3]} 20... Ne6 {[%clk 0:01:32.8]} 21.
f5 {[%clk 0:01:53]} 21... Nc7 {[%clk 0:01:32]} 22. g4 {[%clk 0:01:49]} 22... Nf6
{[%clk 0:01:24]} 23. Nxf6+ {[%clk 0:01:45]} 23... Rxf6 {[%clk 0:01:22.3]} 24. g5
{[%clk 0:01:44.3]} 24... Rf7 {[%clk 0:01:21]} 25. f6 {[%clk 0:01:43.3]} 25...
Bf8 {[%clk 0:01:20.4]} 26. h4 {[%clk 0:01:38.7]} 26... Qb5 {[%clk 0:01:07.1]}
27. Qxb5 {[%clk 0:01:32.7]} 27... Nxb5 {[%clk 0:01:08]} 28. Bh3 {[%clk
0:01:22.8]} 28... Nc7 {[%clk 0:01:03.9]} 29. Rd1 {[%clk 0:01:12.8]} 29... Ne6
{[%clk 0:01:03.1]} 30. Be3 {[%clk 0:01:09.6]} 30... h6 {[%clk 0:01:01.4]} 31.
Bxe6 {[%clk 0:01:05.1]} 31... Rxe6 {[%clk 0:01:00.3]} 32. Kg2 {[%clk 0:01:02.1]}
32... h5 {[%clk 0:00:59.8]} 33. a4 {[%clk 0:01:00.8]} 33... Rb7 {[%clk
0:00:52.6]} 34. c4 {[%clk 0:01:00.4]} 34... a6 {[%clk 0:00:50.6]} 35. Rd3 {[%clk
0:00:56.4]} 35... Kf7 {[%clk 0:00:50.4]} 36. Rb3 {[%clk 0:00:54.8]} 36... Re8
{[%clk 0:00:47.8]} 37. a5 {[%clk 0:00:46.3]} 37... Reb8 {[%clk 0:00:45.2]} 38.
axb6 {[%clk 0:00:45.3]} 38... Rxb6 {[%clk 0:00:46.1]} 39. Rxb6 {[%clk
0:00:42.1]} 39... Rxb6 {[%clk 0:00:47]} 40. Ra2 {[%clk 0:00:42.3]} 40... Ke6
{[%clk 0:00:45.1]} 41. Kf2 {[%clk 0:00:40.2]} 41... Rb4 {[%clk 0:00:39.3]} 42.
Rxa6 {[%clk 0:00:31.4]} 42... Rxc4 {[%clk 0:00:39.4]} 43. Kf3 {[%clk 0:00:26.1]}
43... Rb4 {[%clk 0:00:37.3]} 44. Bxc5 {[%clk 0:00:26]} 44... Rb3+ {[%clk
0:00:33.7]} 45. Be3 {[%clk 0:00:25.6]} 45... Rxb2 {[%clk 0:00:33.1]} 46. Ra8
{[%clk 0:00:25.9]} 46... Kf7 {[%clk 0:00:32.6]} 47. Ra7+ {[%clk 0:00:25.4]}
47... Ke6 {[%clk 0:00:32.6]} 48. Ra8 {[%clk 0:00:19.6]} 48... Kf7 {[%clk
0:00:31.9]} 49. Rd8 {[%clk 0:00:19.5]} 49... Rb3 {[%clk 0:00:31.2]} 50. Rd7+
{[%clk 0:00:18]} 50... Ke6 {[%clk 0:00:30.5]} 51. Rd8 {[%clk 0:00:18]} 51... Kf7
{[%clk 0:00:30.3]} 52. Ke2 {[%clk 0:00:16.5]} 52... Ra3 {[%clk 0:00:28.8]} 53.
Kf2 {[%clk 0:00:16.2]} 53... Rb3 {[%clk 0:00:27.6]} 54. Rc8 {[%clk 0:00:15.5]}
54... Ra3 {[%clk 0:00:27.2]} 55. Rb8 {[%clk 0:00:14.7]} 55... Rc3 {[%clk
0:00:26.5]} 56. Rb7+ {[%clk 0:00:13.1]} 56... Ke6 {[%clk 0:00:25.9]} 57. Ke2
{[%clk 0:00:11.4]} 57... Ra3 {[%clk 0:00:24.9]} 58. Rb8 {[%clk 0:00:11.2]} 58...
Kf7 {[%clk 0:00:23.5]} 59. Kf3 {[%clk 0:00:11]} 59... Ra1 {[%clk 0:00:22.3]} 60.
Bf2 {[%clk 0:00:10.4]} 60... Ra3+ {[%clk 0:00:21.2]} 61. Be3 {[%clk 0:00:10.9]}
61... Ra1 {[%clk 0:00:21]} 62. Bf2 {[%clk 0:00:10.9]} 62... Rf1 {[%clk
0:00:20.7]} 63. Kg2 {[%clk 0:00:09.9]} 63... Ra1 {[%clk 0:00:19.7]} 64. Kf3
{[%clk 0:00:10.3]} 1/2-1/2

[Event "*** Titled Tuesday Blitz"]
[Site "Chess.com"]
[Date "2020.04.07"]
[Round "7"]
[White "Micki-taryan"]
[Black "severomorskij"]
[Result "1-0"]
[WhiteElo "3086"]
[BlackElo "2857"]
[TimeControl "180+1"]
[EndTime "14:20:08 PDT"]
[Termination "Micki-taryan won on time"]

1. d4 {[%clk 0:03:00.9]} 1... Nf6 {[%clk 0:02:59.4]} 2. Nf3 {[%clk 0:03:01.4]}
2... d5 {[%clk 0:02:58.9]} 3. c4 {[%clk 0:03:01.2]} 3... e6 {[%clk 0:02:57.6]}
4. Nc3 {[%clk 0:03:01.5]} 4... Bb4 {[%clk 0:02:57.3]} 5. cxd5 {[%clk 0:02:56.2]}
5... exd5 {[%clk 0:02:56.6]} 6. Bf4 {[%clk 0:02:56.5]} 6... O-O {[%clk
0:02:40.5]} 7. e3 {[%clk 0:02:53.4]} 7... c5 {[%clk 0:02:38]} 8. dxc5 {[%clk
0:02:51.6]} 8... Nc6 {[%clk 0:02:38.2]} 9. Bd3 {[%clk 0:02:45.7]} 9... Bxc5
{[%clk 0:02:26.8]} 10. O-O {[%clk 0:02:42.9]} 10... d4 {[%clk 0:02:22.2]} 11.
exd4 {[%clk 0:02:26.2]} 11... Nxd4 {[%clk 0:02:18.1]} 12. h3 {[%clk 0:02:24.7]}
12... Bf5 {[%clk 0:02:01.7]} 13. Bxf5 {[%clk 0:02:20.4]} 13... Nxf5 {[%clk
0:02:01.6]} 14. Qb3 {[%clk 0:02:10.1]} 14... Qb6 {[%clk 0:01:50.2]} 15. Qxb6
{[%clk 0:02:06.5]} 15... Bxb6 {[%clk 0:01:47.5]} 16. Rad1 {[%clk 0:02:06.7]}
16... Rfd8 {[%clk 0:01:44.2]} 17. Rfe1 {[%clk 0:02:00.8]} 17... Rxd1 {[%clk
0:01:35.7]} 18. Rxd1 {[%clk 0:02:00.7]} 18... Rd8 {[%clk 0:01:34.8]} 19. Rxd8+
{[%clk 0:01:58]} 19... Bxd8 {[%clk 0:01:33.7]} 20. g4 {[%clk 0:01:58.9]} 20...
Ne7 {[%clk 0:01:29.7]} 21. Bg5 {[%clk 0:01:50.2]} 21... Nc6 {[%clk 0:01:26.2]}
22. Kf1 {[%clk 0:01:46.1]} 22... h6 {[%clk 0:01:24.3]} 23. Be3 {[%clk
0:01:43.7]} 23... Kf8 {[%clk 0:01:22.3]} 24. Ke2 {[%clk 0:01:41.7]} 24... Ke7
{[%clk 0:01:16.5]} 25. Kd3 {[%clk 0:01:38.9]} 25... Ba5 {[%clk 0:01:11.4]} 26.
Nd4 {[%clk 0:01:31.7]} 26... Ne5+ {[%clk 0:01:07.7]} 27. Kc2 {[%clk 0:01:27.4]}
27... Bxc3 {[%clk 0:00:50.2]} 28. bxc3 {[%clk 0:01:28.3]} 28... b6 {[%clk
0:00:34.6]} 29. Nf5+ {[%clk 0:01:15.9]} 29... Kf8 {[%clk 0:00:34.8]} 30. Bd4
{[%clk 0:01:10]} 30... Ned7 {[%clk 0:00:34.6]} 31. Kd3 {[%clk 0:01:08.7]} 31...
h5 {[%clk 0:00:32.2]} 32. f3 {[%clk 0:01:00.3]} 32... hxg4 {[%clk 0:00:31.9]}
33. hxg4 {[%clk 0:00:56]} 33... Ne8 {[%clk 0:00:31.6]} 34. Bf2 {[%clk
0:00:46.9]} 34... g6 {[%clk 0:00:30.8]} 35. Nd4 {[%clk 0:00:47.4]} 35... Nd6
{[%clk 0:00:18.4]} 36. Nc6 {[%clk 0:00:47.6]} 36... a6 {[%clk 0:00:16.5]} 37. a4
{[%clk 0:00:39.1]} 37... Ke8 {[%clk 0:00:15.7]} 38. Kd4 {[%clk 0:00:33]} 38...
Nc5 {[%clk 0:00:14]} 39. Kd5 {[%clk 0:00:30.7]} 39... Ndb7 {[%clk 0:00:13.9]}
40. a5 {[%clk 0:00:29.8]} 40... Na4 {[%clk 0:00:08.6]} 41. axb6 {[%clk
0:00:28.2]} 41... Nxc3+ {[%clk 0:00:08.2]} 42. Kc4 {[%clk 0:00:27.9]} 42... Nb5
{[%clk 0:00:08.1]} 43. Bc5 {[%clk 0:00:18.7]} 43... N5d6+ {[%clk 0:00:06.4]} 44.
Bxd6 {[%clk 0:00:15.6]} 44... Nxd6+ {[%clk 0:00:07.3]} 45. Kd5 {[%clk
0:00:15.4]} 45... Nb7 {[%clk 0:00:06.7]} 46. Ne5 {[%clk 0:00:15.7]} 46... a5
{[%clk 0:00:04.2]} 47. Kc6 {[%clk 0:00:13.9]} 47... Nd8+ {[%clk 0:00:04.3]} 48.
Kc7 {[%clk 0:00:13.7]} 48... a4 {[%clk 0:00:03.9]} 49. Nc4 {[%clk 0:00:13.7]}
49... Ke7 {[%clk 0:00:02.2]} 50. f4 {[%clk 0:00:11]} 50... f6 {[%clk 0:00:01.3]}
51. f5 {[%clk 0:00:10.7]} 51... gxf5 {[%clk 0:00:01.2]} 52. gxf5 {[%clk
0:00:11.6]} 52... Ke8 {[%clk 0:00:01.6]} 53. b7 {[%clk 0:00:09.2]} 53... Nxb7
{[%clk 0:00:01.8]} 54. Kxb7 {[%clk 0:00:10.1]} 54... Kd7 {[%clk 0:00:02.3]} 55.
Kb6 {[%clk 0:00:06.3]} 55... a3 {[%clk 0:00:03.2]} 56. Nxa3 {[%clk 0:00:06.5]}
56... Kd6 {[%clk 0:00:03.6]} 57. Nc4+ {[%clk 0:00:05.1]} 57... Kd5 {[%clk
0:00:03.8]} 58. Kc7 {[%clk 0:00:02.8]} 58... Kxc4 {[%clk 0:00:02.1]} 59. Kd6
{[%clk 0:00:02.8]} 1-0

[Event "*** Titled Tuesday Blitz"]
[Site "Chess.com"]
[Date "2020.04.07"]
[Round "7"]
[White "tamarozi99"]
[Black "isla88"]
[Result "1-0"]
[WhiteElo "1955"]
[BlackElo "2257"]
[TimeControl "180+1"]
[EndTime "14:20:09 PDT"]
[Termination "tamarozi99 won by resignation"]

1. e4 {[%clk 0:03:00.9]} 1... d6 {[%clk 0:02:11.2]} 2. d4 {[%clk 0:02:59.2]}
2... g6 {[%clk 0:02:11.3]} 3. Nc3 {[%clk 0:02:58.4]} 3... Bg7 {[%clk 0:02:12.2]}
4. Nf3 {[%clk 0:02:58.3]} 4... a6 {[%clk 0:02:11.9]} 5. a4 {[%clk 0:02:57.4]}
5... Nd7 {[%clk 0:02:11.7]} 6. h3 {[%clk 0:02:55.2]} 6... b6 {[%clk 0:02:12]} 7.
Be3 {[%clk 0:02:52]} 7... Bb7 {[%clk 0:02:11.5]} 8. Bd3 {[%clk 0:02:52]} 8... c5
{[%clk 0:02:10.7]} 9. O-O {[%clk 0:02:47.9]} 9... Ngf6 {[%clk 0:02:09.8]} 10. d5
{[%clk 0:02:36.8]} 10... O-O {[%clk 0:02:06.8]} 11. Qe2 {[%clk 0:02:30.1]} 11...
Ne8 {[%clk 0:02:01.6]} 12. Nh2 {[%clk 0:02:12.6]} 12... e6 {[%clk 0:01:59.7]}
13. Rab1 {[%clk 0:01:58.9]} 13... exd5 {[%clk 0:01:57.8]} 14. Nxd5 {[%clk
0:01:58.7]} 14... Nc7 {[%clk 0:01:57]} 15. c4 {[%clk 0:01:39.1]} 15... Nxd5
{[%clk 0:01:53.6]} 16. exd5 {[%clk 0:01:33.7]} 16... Ne5 {[%clk 0:01:48.8]} 17.
f4 {[%clk 0:01:26.1]} 17... Nxd3 {[%clk 0:01:47.2]} 18. Qxd3 {[%clk 0:01:27]}
18... f5 {[%clk 0:01:45.7]} 19. Nf3 {[%clk 0:01:26.1]} 19... h6 {[%clk
0:01:45.1]} 20. b3 {[%clk 0:01:13.1]} 20... Qf6 {[%clk 0:01:44]} 21. Rbe1 {[%clk
0:01:11.4]} 21... Qc3 {[%clk 0:01:42.9]} 22. Qxc3 {[%clk 0:01:06.2]} 22... Bxc3
{[%clk 0:01:43.8]} 23. Rc1 {[%clk 0:01:06.5]} 23... Bf6 {[%clk 0:01:44.1]} 24.
b4 {[%clk 0:01:05.8]} 24... a5 {[%clk 0:01:31]} 25. b5 {[%clk 0:01:04.2]} 25...
Rae8 {[%clk 0:01:28]} 26. Rce1 {[%clk 0:01:02.5]} 26... Bc3 {[%clk 0:01:26.9]}
27. Re2 {[%clk 0:01:02.7]} 27... g5 {[%clk 0:01:22.7]} 28. g3 {[%clk 0:00:57]}
28... g4 {[%clk 0:01:18.4]} 29. hxg4 {[%clk 0:00:53.9]} 29... fxg4 {[%clk
0:01:19.3]} 30. Nh4 {[%clk 0:00:53.5]} 30... Kg7 {[%clk 0:01:09.4]} 31. Rc1
{[%clk 0:00:41.4]} 31... Rxe3 {[%clk 0:01:00]} 32. Rxe3 {[%clk 0:00:39.2]} 32...
Bd4 {[%clk 0:01:00]} 33. Kf2 {[%clk 0:00:39.5]} 33... Kf6 {[%clk 0:00:59.5]} 34.
Re1 {[%clk 0:00:36]} 34... Re8 {[%clk 0:00:52.3]} 35. Ng2 {[%clk 0:00:30.5]}
35... Bc8 {[%clk 0:00:49.2]} 36. Ke2 {[%clk 0:00:24.9]} 36... Bxe3 {[%clk
0:00:47.8]} 37. Nxe3 {[%clk 0:00:25.1]} 37... Bf5 {[%clk 0:00:47.4]} 38. Kf2
{[%clk 0:00:25]} 38... Re4 {[%clk 0:00:36.2]} 39. Nxg4+ {[%clk 0:00:20.2]} 39...
Kg6 {[%clk 0:00:36.5]} 40. Ne3 {[%clk 0:00:20]} 40... Rd4 {[%clk 0:00:33.1]} 41.
Nxf5 {[%clk 0:00:17.3]} 41... Kxf5 {[%clk 0:00:34]} 42. Rc1 {[%clk 0:00:17.7]}
42... Rd2+ {[%clk 0:00:33.3]} 43. Ke3 {[%clk 0:00:18]} 43... Ra2 {[%clk
0:00:33]} 44. Rh1 {[%clk 0:00:17]} 44... Rxa4 {[%clk 0:00:28.8]} 45. Rxh6 {[%clk
0:00:17]} 45... Rxc4 {[%clk 0:00:28.6]} 46. Rxd6 {[%clk 0:00:16.3]} 46... a4
{[%clk 0:00:26.6]} 47. Rxb6 {[%clk 0:00:15.9]} 47... a3 {[%clk 0:00:25.9]} 48.
Ra6 {[%clk 0:00:16.2]} 48... Rc3+ {[%clk 0:00:26.3]} 49. Kd2 {[%clk 0:00:15.9]}
49... Rxg3 {[%clk 0:00:25.3]} 50. b6 {[%clk 0:00:16]} 50... a2 {[%clk
0:00:25.5]} 51. b7 {[%clk 0:00:13.7]} 51... Rg2+ {[%clk 0:00:24.4]} 52. Kc3
{[%clk 0:00:11.8]} 52... Rg3+ {[%clk 0:00:17.8]} 53. Kc4 {[%clk 0:00:11]} 53...
Rg6 {[%clk 0:00:11.1]} 54. Rxa2 {[%clk 0:00:10.3]} 54... Rb6 {[%clk 0:00:10.6]}
55. Kxc5 {[%clk 0:00:09.6]} 55... Rxb7 {[%clk 0:00:10.9]} 56. Re2 {[%clk
0:00:09.7]} 56... Kxf4 {[%clk 0:00:10.6]} 57. d6 {[%clk 0:00:10]} 57... Kf5
{[%clk 0:00:09.8]} 58. Kc6 {[%clk 0:00:09.5]} 58... Rb1 {[%clk 0:00:09.2]} 59.
d7 {[%clk 0:00:08.9]} 59... Rc1+ {[%clk 0:00:09]} 60. Kb7 {[%clk 0:00:09]} 60...
Rb1+ {[%clk 0:00:07.8]} 61. Kc8 {[%clk 0:00:09.4]} 61... Rc1+ {[%clk 0:00:07.7]}
62. Kd8 {[%clk 0:00:10.1]} 62... Kf6 {[%clk 0:00:07.6]} 63. Ke8 {[%clk
0:00:09.7]} 1-0

[Event "*** Titled Tuesday Blitz"]
[Site "Chess.com"]
[Date "2020.04.07"]
[Round "7"]
[White "Harry_Rakkel"]
[Black "almaguerjm"]
[Result "1/2-1/2"]
[WhiteElo "2491"]
[BlackElo "2332"]
[TimeControl "180+1"]
[EndTime "14:20:12 PDT"]
[Termination "Game drawn by repetition"]

1. e4 {[%clk 0:02:58.1]} 1... e5 {[%clk 0:02:52.8]} 2. Nf3 {[%clk 0:02:56.7]}
2... Nc6 {[%clk 0:02:51.5]} 3. Bc4 {[%clk 0:02:57]} 3... Nf6 {[%clk 0:02:48.9]}
4. Ng5 {[%clk 0:02:56.1]} 4... d5 {[%clk 0:02:49.2]} 5. exd5 {[%clk 0:02:56.3]}
5... Na5 {[%clk 0:02:49.4]} 6. Bb5+ {[%clk 0:02:56.8]} 6... c6 {[%clk
0:02:49.7]} 7. dxc6 {[%clk 0:02:57.1]} 7... bxc6 {[%clk 0:02:50.6]} 8. Bd3
{[%clk 0:02:57]} 8... h6 {[%clk 0:02:50.2]} 9. Ne4 {[%clk 0:02:54.4]} 9... Nd5
{[%clk 0:02:49.5]} 10. Nbc3 {[%clk 0:02:48]} 10... Be7 {[%clk 0:02:47.1]} 11.
Nxd5 {[%clk 0:02:43]} 11... cxd5 {[%clk 0:02:48]} 12. Bb5+ {[%clk 0:02:39.9]}
12... Bd7 {[%clk 0:02:47.8]} 13. Bxd7+ {[%clk 0:02:39.5]} 13... Qxd7 {[%clk
0:02:48.7]} 14. Ng3 {[%clk 0:02:38.2]} 14... O-O {[%clk 0:02:34.8]} 15. O-O
{[%clk 0:02:37.1]} 15... f5 {[%clk 0:02:34.9]} 16. Ne2 {[%clk 0:02:30.1]} 16...
Bd6 {[%clk 0:02:22.1]} 17. d4 {[%clk 0:02:26.1]} 17... e4 {[%clk 0:02:19.3]} 18.
Bf4 {[%clk 0:02:21.8]} 18... g5 {[%clk 0:01:57.4]} 19. Bxd6 {[%clk 0:02:17.6]}
19... Qxd6 {[%clk 0:01:58.3]} 20. f4 {[%clk 0:02:14.6]} 20... Rab8 {[%clk
0:01:52.3]} 21. b3 {[%clk 0:02:12.8]} 21... Nc6 {[%clk 0:01:25.9]} 22. Qd2
{[%clk 0:02:11.5]} 22... Rb7 {[%clk 0:01:14.5]} 23. fxg5 {[%clk 0:02:05.5]}
23... hxg5 {[%clk 0:01:12.2]} 24. Qxg5+ {[%clk 0:02:04.5]} 24... Rg7 {[%clk
0:01:12.2]} 25. Qf4 {[%clk 0:02:03.1]} 25... Qf6 {[%clk 0:01:09]} 26. Qe3 {[%clk
0:01:51.1]} 26... Qg6 {[%clk 0:00:51.8]} 27. Nf4 {[%clk 0:01:44.2]} 27... Qd6
{[%clk 0:00:51.6]} 28. c3 {[%clk 0:01:34]} 28... Rff7 {[%clk 0:00:49.5]} 29. g3
{[%clk 0:01:32.1]} 29... Rh7 {[%clk 0:00:47.3]} 30. Rf2 {[%clk 0:01:31.6]} 30...
Qh6 {[%clk 0:00:42.6]} 31. Nxd5 {[%clk 0:01:22.3]} 31... Qd6 {[%clk 0:00:28]}
32. Nf4 {[%clk 0:01:19.1]} 32... Ne7 {[%clk 0:00:22]} 33. Raf1 {[%clk
0:01:15.1]} 33... Rfg7 {[%clk 0:00:21.7]} 34. c4 {[%clk 0:01:12]} 34... Qh6
{[%clk 0:00:21.2]} 35. Rg2 {[%clk 0:01:07.4]} 35... Qb6 {[%clk 0:00:19.3]} 36.
Re1 {[%clk 0:01:03]} 36... Rh6 {[%clk 0:00:19.6]} 37. d5 {[%clk 0:01:01.3]}
37... Qd6 {[%clk 0:00:16.2]} 38. Rf1 {[%clk 0:00:57.8]} 38... Qe5 {[%clk
0:00:12]} 39. Ne6 {[%clk 0:00:56.4]} 39... Rgh7 {[%clk 0:00:11.2]} 40. Qd4
{[%clk 0:00:50.2]} 40... Rxe6 {[%clk 0:00:11.1]} 41. Qxe5 {[%clk 0:00:43.4]}
41... Rxe5 {[%clk 0:00:12]} 42. Rd1 {[%clk 0:00:37.5]} 42... Nc8 {[%clk
0:00:11.7]} 43. c5 {[%clk 0:00:36.3]} 43... Rd7 {[%clk 0:00:11.7]} 44. Rgd2
{[%clk 0:00:29.8]} 44... e3 {[%clk 0:00:12.2]} 45. Re2 {[%clk 0:00:29.4]} 45...
Rdxd5 {[%clk 0:00:12.2]} 46. Rxd5 {[%clk 0:00:29.1]} 46... Rxd5 {[%clk
0:00:13.1]} 47. Rxe3 {[%clk 0:00:29.2]} 47... Rxc5 {[%clk 0:00:13.8]} 48. a4
{[%clk 0:00:22.4]} 48... Nd6 {[%clk 0:00:13.1]} 49. Kg2 {[%clk 0:00:21.4]} 49...
Ne4 {[%clk 0:00:13.1]} 50. Rd3 {[%clk 0:00:20.3]} 50... Kf7 {[%clk 0:00:13.1]}
51. Rd7+ {[%clk 0:00:19.1]} 51... Ke6 {[%clk 0:00:12.5]} 52. Rxa7 {[%clk
0:00:20]} 52... Rc2+ {[%clk 0:00:12.3]} 53. Kf3 {[%clk 0:00:19.6]} 53... Ng5+
{[%clk 0:00:12.4]} 54. Ke3 {[%clk 0:00:19]} 54... Rxh2 {[%clk 0:00:11.3]} 55. b4
{[%clk 0:00:18.9]} 55... Rg2 {[%clk 0:00:10.2]} 56. Kf4 {[%clk 0:00:17.9]} 56...
Nf7 {[%clk 0:00:10.3]} 57. Ra6+ {[%clk 0:00:17]} 57... Nd6 {[%clk 0:00:10.7]}
58. b5 {[%clk 0:00:17]} 58... Re2 {[%clk 0:00:10.4]} 59. a5 {[%clk 0:00:14.6]}
59... Re4+ {[%clk 0:00:10.6]} 60. Kf3 {[%clk 0:00:14.7]} 60... Rb4 {[%clk
0:00:10.8]} 61. b6 {[%clk 0:00:15]} 61... Ke5 {[%clk 0:00:11]} 62. Ra7 {[%clk
0:00:14.6]} 62... Rb3+ {[%clk 0:00:11.5]} 63. Kg2 {[%clk 0:00:15.1]} 63... Ne4
{[%clk 0:00:11.1]} 64. Re7+ {[%clk 0:00:13.2]} 64... Kf6 {[%clk 0:00:11]} 65.
Rc7 {[%clk 0:00:12.6]} 65... Rxg3+ {[%clk 0:00:10.6]} 66. Kf1 {[%clk 0:00:12.3]}
66... Rb3 {[%clk 0:00:09.9]} 67. b7 {[%clk 0:00:11.4]} 67... Nd6 {[%clk
0:00:07.7]} 68. a6 {[%clk 0:00:11.3]} 68... Nxb7 {[%clk 0:00:04.8]} 69. Rxb7
{[%clk 0:00:11.3]} 69... Ra3 {[%clk 0:00:04.4]} 70. a7 {[%clk 0:00:11.9]} 70...
Kg5 {[%clk 0:00:04.8]} 71. Kf2 {[%clk 0:00:11.3]} 71... Kf4 {[%clk 0:00:05.1]}
72. Rb4+ {[%clk 0:00:11.2]} 72... Kg5 {[%clk 0:00:04.8]} 73. Rb7 {[%clk
0:00:12.1]} 73... Ra2+ {[%clk 0:00:05.1]} 74. Kf3 {[%clk 0:00:11.5]} 74... Ra3+
{[%clk 0:00:05.8]} 75. Kf2 {[%clk 0:00:12.1]} 1/2-1/2

[Event "*** Titled Tuesday Blitz"]
[Site "Chess.com"]
[Date "2020.04.07"]
[Round "7"]
[White "Jbd735"]
[Black "W_Amadeus"]
[Result "1/2-1/2"]
[WhiteElo "2472"]
[BlackElo "2721"]
[TimeControl "180+1"]
[EndTime "14:20:15 PDT"]
[Termination "Game drawn by repetition"]

1. d4 {[%clk 0:02:59.9]} 1... Nf6 {[%clk 0:02:57.8]} 2. Nf3 {[%clk 0:02:58.3]}
2... d5 {[%clk 0:02:56.1]} 3. Bf4 {[%clk 0:02:56.9]} 3... c5 {[%clk 0:02:55.8]}
4. c3 {[%clk 0:02:54.6]} 4... Nc6 {[%clk 0:02:53.3]} 5. e3 {[%clk 0:02:53.9]}
5... Qb6 {[%clk 0:02:52.5]} 6. Qb3 {[%clk 0:01:54.2]} 6... c4 {[%clk 0:02:48.2]}
7. Qxb6 {[%clk 0:01:52.5]} 7... axb6 {[%clk 0:02:46.2]} 8. Na3 {[%clk
0:01:52.1]} 8... Na7 {[%clk 0:02:30.2]} 9. Nc2 {[%clk 0:01:25.2]} 9... Bf5
{[%clk 0:02:27.8]} 10. Nb4 {[%clk 0:01:25.3]} 10... e6 {[%clk 0:02:25]} 11. a3
{[%clk 0:01:22.8]} 11... Nc6 {[%clk 0:02:16.9]} 12. Nxc6 {[%clk 0:01:06.1]}
12... bxc6 {[%clk 0:02:17.8]} 13. Ne5 {[%clk 0:01:06.7]} 13... Rc8 {[%clk
0:02:04.4]} 14. h3 {[%clk 0:00:57.7]} 14... h6 {[%clk 0:02:02.6]} 15. g4 {[%clk
0:00:56.3]} 15... Bh7 {[%clk 0:02:01.2]} 16. Be2 {[%clk 0:00:46.8]} 16... Nd7
{[%clk 0:02:00.6]} 17. Nxd7 {[%clk 0:00:46]} 17... Kxd7 {[%clk 0:02:01.5]} 18.
Kd2 {[%clk 0:00:45.5]} 18... Ra8 {[%clk 0:02:00.3]} 19. Bd1 {[%clk 0:00:42.4]}
19... Be4 {[%clk 0:01:51.4]} 20. f3 {[%clk 0:00:41.1]} 20... Bd3 {[%clk
0:01:44.9]} 21. Bc2 {[%clk 0:00:41.1]} 21... Bxc2 {[%clk 0:01:44.8]} 22. Kxc2
{[%clk 0:00:41.4]} 22... Ra5 {[%clk 0:01:45.2]} 23. h4 {[%clk 0:00:35.6]} 23...
h5 {[%clk 0:01:42]} 24. Rag1 {[%clk 0:00:34.1]} 24... g6 {[%clk 0:01:39.5]} 25.
Be5 {[%clk 0:00:30.5]} 25... Rh7 {[%clk 0:01:39.5]} 26. gxh5 {[%clk 0:00:27.2]}
26... Rxh5 {[%clk 0:01:39.1]} 27. Rg5 {[%clk 0:00:25.8]} 27... Rh7 {[%clk
0:01:14.1]} 28. h5 {[%clk 0:00:25.4]} 28... Ra8 {[%clk 0:01:08.2]} 29. Rh2
{[%clk 0:00:19.6]} 29... Be7 {[%clk 0:00:59.1]} 30. Rg1 {[%clk 0:00:16.6]} 30...
gxh5 {[%clk 0:00:41.3]} 31. Rgh1 {[%clk 0:00:16.3]} 31... f6 {[%clk 0:00:36.4]}
32. Bf4 {[%clk 0:00:13.6]} 32... Rah8 {[%clk 0:00:36.6]} 33. Kd2 {[%clk
0:00:10]} 33... h4 {[%clk 0:00:26.5]} 34. Rh3 {[%clk 0:00:09.9]} 34... Rh5
{[%clk 0:00:24.7]} 35. Ke2 {[%clk 0:00:08.8]} 35... e5 {[%clk 0:00:20.9]} 36.
dxe5 {[%clk 0:00:06.7]} 36... fxe5 {[%clk 0:00:20.9]} 37. Bh2 {[%clk 0:00:06]}
37... Ke6 {[%clk 0:00:20.2]} 38. Kf1 {[%clk 0:00:05.3]} 38... Bf6 {[%clk
0:00:19.4]} 39. Rg1 {[%clk 0:00:05.1]} 39... Ra8 {[%clk 0:00:17.6]} 40. Rg4
{[%clk 0:00:04.3]} 40... Ra5 {[%clk 0:00:16.7]} 41. Bg1 {[%clk 0:00:03.4]} 41...
Rb5 {[%clk 0:00:16.4]} 42. Rg2 {[%clk 0:00:02.6]} 42... Rb3 {[%clk 0:00:15]} 43.
Rd2 {[%clk 0:00:01.8]} 43... b5 {[%clk 0:00:13.6]} 44. Bf2 {[%clk 0:00:02.3]}
44... c5 {[%clk 0:00:13.7]} 45. Ke2 {[%clk 0:00:02.5]} 45... b4 {[%clk
0:00:14.1]} 46. axb4 {[%clk 0:00:02.1]} 46... cxb4 {[%clk 0:00:14.6]} 47. cxb4
{[%clk 0:00:02.7]} 47... Rxb4 {[%clk 0:00:15.2]} 48. Kd1 {[%clk 0:00:03]} 48...
Rh8 {[%clk 0:00:10.7]} 49. Kc1 {[%clk 0:00:02.8]} 49... Rb3 {[%clk 0:00:05.8]}
50. Bg1 {[%clk 0:00:02]} 50... Rb5 {[%clk 0:00:06]} 51. Bf2 {[%clk 0:00:02]}
51... Rh7 {[%clk 0:00:06.5]} 52. Rd1 {[%clk 0:00:01.8]} 52... Rhb7 {[%clk
0:00:06.6]} 53. Rd2 {[%clk 0:00:02]} 53... c3 {[%clk 0:00:07.1]} 54. bxc3 {[%clk
0:00:02]} 54... Rb1+ {[%clk 0:00:07.3]} 55. Kc2 {[%clk 0:00:02.6]} 55... R7b2+
{[%clk 0:00:07.9]} 56. Kd3 {[%clk 0:00:03]} 56... Rxd2+ {[%clk 0:00:08.1]} 57.
Kxd2 {[%clk 0:00:03.1]} 57... Rb2+ {[%clk 0:00:07.1]} 58. Ke1 {[%clk 0:00:03.5]}
58... Rc2 {[%clk 0:00:06.8]} 59. Bxh4 {[%clk 0:00:03]} 59... Bxh4+ {[%clk
0:00:03.4]} 60. Rxh4 {[%clk 0:00:03.9]} 60... Rxc3 {[%clk 0:00:03.9]} 61. Ke2
{[%clk 0:00:04.1]} 61... Ra3 {[%clk 0:00:04.2]} 62. Kd2 {[%clk 0:00:04.4]} 62...
Ra2+ {[%clk 0:00:04]} 63. Kd3 {[%clk 0:00:04.4]} 63... Ra3+ {[%clk 0:00:04.4]}
64. Kd2 {[%clk 0:00:04.4]} 64... Ra2+ {[%clk 0:00:04.8]} 65. Kd3 {[%clk
0:00:04.5]} 65... Ra3+ {[%clk 0:00:05.3]} 66. Kd2 {[%clk 0:00:05]} 1/2-1/2